Cogmind - Beta 13 @@@ ROGUE MODE // 2024.04.02 @ 23:19:38 Player: deadnoob Result: Destroyed by XY-QHJ(R) with Subdweller Beam Cannon Performance ------------- Evolutions (0) 0 Regions Visited (3) 600 Robots Destroyed (42) 210 Value Destroyed (993) 993 Prototype IDs (1) 20 Alien Tech Used (0) 0 Bonus (0) 0 TOTAL SCORE: 1823 Bonus ------- None Cogmind --------- Core Integrity 0/250 Matter 7/300 Energy 200/200 System Corruption 0% Temperature Cool (9) Movement Rolling (120) Ox1 Location -10/Subcaves Parts ------- > --- POWER (1) -------- Subdweller Power Source > --- PROPULSION (2) --- Spiked Treads Subdweller Monowheel > --- UTILITY (2) ------ Scrap Shield > --- WEAPON (2) ------- Light Cannon Makeshift Sword > --- INVENTORY (5) ---- Scrap Shield Fragment (46) Scrap Shield Fragment (45) Scrap Shield Fragment (43) Scrap Shield Fragment (41) Peak State ------------ > --- POWER ------------ Makeshift Power Source > --- PROPULSION ------- Light Treads Subdweller Monowheel > --- UTILITY ---------- High-capacity Storage Unit Makeshift Light Armor Plating > --- WEAPON ----------- Light Cannon Bore Cannon > --- INVENTORY -------- Light Ion Engine Light Nuclear Core Aluminum Leg Improved Heat Sink Huge Storage Unit Small Matter Pod Sensor Array Experimental Sensor Array Seismic Detector Battle Rifle Subdweller Machine Gun Light Cannon Light Cannon Light Cannon Light Cannon Light Cannon Light Cannon Grenade Launcher Scrap Shield Fragment Scrap Shield Fragment [Rating: 21] Favorites ----------- Power Light Nuclear Core Engine Light Ion Engine Power Core Light Nuclear Core Propulsion Light Treads Treads Light Treads Leg Aluminum Leg Wheel Wheel Utility High-capacity Storage Unit Device Seismic Detector Storage High-capacity Storage Unit Protection Makeshift Light Armor Plating Weapon Light Cannon Ballistic Gun Assault Rifle Ballistic Cannon Light Cannon Launcher Grenade Launcher Slashing Weapon Makeshift Sword Build | -11 -10 -10 -10 ------- Run | Yrd Mat Min Sub Slots Evolved . | . . . . Power . | . . . . Propulsion . | . . . . Utility . | . . . . Weapon . | . . . . Parts Attached 46 | . 15 5 26 Power 5 | . 1 1 3 Engine 3 | . 1 . 2 Core 2 | . . 1 1 Reactor . | . . . . Propulsion 10 | . 2 . 8 Treads 5 | . 2 . 3 Leg 2 | . . . 2 Wheel 3 | . . . 3 Hover . | . . . . Flight . | . . . . Utility 8 | . 4 2 2 Device 5 | . 3 2 . Storage 1 | . 1 . . Processor . | . . . . Hackware . | . . . . Protection 2 | . . . 2 Artifact . | . . . . Weapon 23 | . 8 2 13 Energy Gun . | . . . . Energy Cannon . | . . . . Ballistic Gun 4 | . 2 . 2 Ballistic Cannon 11 | . 3 1 7 Launcher 7 | . 3 1 3 Special Weapon . | . . . . Impact Weapon . | . . . . Slashing Weapon 1 | . . . 1 Piercing Weapon . | . . . . Special Melee Weapon . | . . . . Unidentified Prototypes 1 | . . 1 . Parts Lost 10 | . . . 10 Power 2 | . . . 2 Propulsion 5 | . . . 5 Utility 1 | . . . 1 Weapon 2 | . . . 2 Highest Loss Streak 3 | . . . 3 To Critical Strikes . | . . . . Average Slot Usage (%) 92 | . 99 100 87 Engine 4 | . 14 4 1 Core 6 | . . 9 7 Treads 18 | . 13 28 16 Leg 6 | . 14 . 5 Wheel 2 | . . . 4 Device 5 | . 13 14 . Storage 12 | . 14 14 12 Protection 5 | . . . 9 Ballistic Gun 3 | . 12 . 1 Ballistic Cannon 23 | . 15 27 24 Slashing Weapon 1 | . . . 1 Naked Turns . | . . . . Heaviest Build 61 | 12 50 52 61 Greatest Support 40 | 20 40 40 40 Greatest Overweight (x) 5 | . 1 1 5 Average Overweight (x) 1 | . . 1 1 Largest Inventory Capacity 20 | 8 20 20 20 Average Capacity 17 | 8 12 20 18 Most Carried 20 | 5 13 15 20 Average Carried 14 | 3 8 14 16 Final Capacity 20 | 8 20 20 5 Final Carried 15 | 3 12 15 4 Class Distribution -------------------- 100% | Mutant Dominant Class ---------------- Mutant | -10/Materials Mutant | -10/Mines Mutant | -10/Subcaves Resources | -11 -10 -10 -10 ----------- Run | Yrd Mat Min Sub Matter Collected 1354 | 195 419 210 530 Remotely . | . . . . Salvage Created 1030 | . 416 325 289 Parts 69 | . 28 17 24 Haulers Intercepted 1 | . 1 . . Recyclers Shooed . | . . . . Parts Field Recycled . | . . . . Retrieved Matter . | . . . . Parts Self-Destructed 6 | . . . 6 Prevented . | . . . . Kills | -11 -10 -10 -10 ------- Run | Yrd Mat Min Sub Combat Hostiles Destroyed 33 | . 11 10 12 Melee 2 | . . . 2 Guns 6 | . 6 . . Cannons 14 | . . 7 7 AOE 11 | . 5 3 3 Classes Destroyed 9 | . 6 1 2 Worker 3 | . 1 2 . Tunneler 1 | . . 1 . Hauler 1 | . 1 . . Recycler 3 | . 1 2 . Watcher 1 | . 1 . . Swarmer 12 | . 6 6 . Grunt 13 | . 5 4 4 Artisan 1 | . . . 1 Subdweller 8 | . . . 8 Best Kill Streak 5 | . 4 5 2 Combat Bots Only 3 | . 3 3 2 Max Kills in Single Turn 3 | . 3 2 1 Gunslinging . | . . . . Exploded 2 | . 2 1 1 Melee 1 | . . . 1 Uniques/NPCs Destroyed . | . . . . Combat | -11 -10 -10 -10 -------- Run | Yrd Mat Min Sub Hostile Shots Fired 168 | . 39 58 71 Missed 45 | . 15 16 14 Damage Taken 1858 | . 254 382 1222 Core 253 | . 29 34 190 Absorbed by Shields . | . . . . Core Remaining (%) 100 | 100 . . . Volleys Fired 149 | . 39 29 81 Largest 2 | . 2 2 2 Hottest 92 | . 70 70 92 Shots Fired 225 | . 71 52 102 Gun 65 | . 53 . 12 Cannon 133 | . 11 46 76 Launcher 27 | . 7 6 14 Special . | . . . . Kinetic 198 | . 64 46 88 Thermal . | . . . . Explosive 27 | . 7 6 14 Electromagnetic . | . . . . Robot Hit Streak 12 | . 6 12 12 Robot Miss Streak 4 | . 3 3 4 Penetration Max . | . . . . Secondary Targets . | . . . . Shots Hit Robots 107 | . 39 25 43 Core Hits 63 | . 21 22 20 Critical Kills . | . . . . Critical Parts Destroyed . | . . . . Critical Strikes 1 | . . . 1 Blast 1 | . . . 1 Melee Attacks 12 | . . . 12 Impact . | . . . . Slashing 12 | . . . 12 Piercing . | . . . . Sneak Attacks . | . . . . Combat Hostiles . | . . . . Follow-up Attacks . | . . . . Damage Inflicted 2645 | . 742 767 1136 Guns 375 | . 375 . . Cannons 971 | . 94 418 459 Explosions 1105 | . 271 349 485 Melee 181 | . . . 181 Ramming 13 | . 2 . 11 Kinetic 1346 | . 469 418 459 Thermal . | . . . . Explosive 1105 | . 271 349 485 Electromagnetic . | . . . . Impact . | . . . . Slashing 181 | . . . 181 Piercing . | . . . . Highest Corruption . | . . . . Average Corruption . | . . . . Corruption Purged . | . . . . Corruption Blocked . | . . . . Overload Shots . | . . . . Overflow Damage 16 | . 2 14 . Projectiles 14 | . . 14 . Explosions 2 | . 2 . . Melee . | . . . . Knockbacks 14 | . 2 6 6 Impact . | . . . . Kinetic 13 | . 2 5 6 Secondary 1 | . . 1 . Self-Inflicted Damage 5 | . 5 . . Shots 1 | . 1 . . Rammed 8 | . 1 . 7 Targets Rammed 8 | . 1 . 7 Kicked . | . . . . Crushed . | . . . . Highest Temperature 105 | . 27 105 5 Average Temperature 36 | . 10 43 3 Received Heat Transfer 435 | . 96 63 276 Siege Activations . | . . . . Robots Corrupted . | . . . . Combat Hostiles . | . . . . Parts Fried . | . . . . Impact Corruptions . | . . . . Robots Melted . | . . . . Combat Hostiles . | . . . . Parts Melted . | . . . . Heat Transferred . | . . . . Parts Sabotaged . | . . . . Parts Stolen . | . . . . Parts Stripped . | . . . . Power Chain Reactions . | . . . . Alert | -11 -10 -10 -10 ------- Run | Yrd Mat Min Sub Peak Influence 248 | . 248 173 . Initial 49 | . . 49 . Average 100 | . 132 66 . Maximum Alert Level 1 | . 1 . . Low Security (%) 79 | 100 59 100 . Level 1 20 | . 40 . . Level 2 . | . . . . Level 3 . | . . . . Level 4 . | . . . . Level 5 . | . . . . High Security . | . . . . Max Security . | . . . . Squads Dispatched 3 | . 3 . . Investigation 1 | . 1 . . Extermination . | . . . . Reinforcement 2 | . 2 . . Assault . | . . . . Garrison . | . . . . Intercept . | . . . . Searches Triggered . | . . . . Construction Impeded . | . . . . Haulers Reinforced . | . . . . Active Scanning Responses . | . . . . Cargo Convoy Interrupts . | . . . . Stealth | -11 -10 -10 -10 --------- Run | Yrd Mat Min Sub Distress Signals . | . . . . Communications Jammed . | . . . . Distress Signals . | . . . . Times Spotted 45 | . 23 10 12 Peak Tracking Total 4 | . 4 3 2 Tactical Retreats . | . . . . Traps | -11 -10 -10 -10 ------- Run | Yrd Mat Min Sub Traps Triggered 1 | . . . 1 Indirectly . | . . . . Trap Hack Attempts . | . . . . Triggered . | . . . . Disarmed . | . . . . Reprogrammed . | . . . . Reused . | . . . . Traps Extracted . | . . . . Installed . | . . . . Triggered . | . . . . Machines | -11 -10 -10 -10 ---------- Run | Yrd Mat Min Sub Machines Disabled . | . . . . Max in Single Turn . | . . . . Machines Repaired . | . . . . Machines Dismantled . | . . . . Machines Sabotaged . | . . . . Overloaded Fab Kills . | . . . . Hacking | -11 -10 -10 -10 --------- Run | Yrd Mat Min Sub Machines Accessed 4 | . 4 . . Terminals 3 | . 3 . . Fabricators . | . . . . Repair Stations . | . . . . Recycling Units 1 | . 1 . . Scanalyzers . | . . . . Garrison Access . | . . . . Total Hacks 14 | . 14 . . Successful 4 | . 4 . . Failed 10 | . 10 . . Catastrophic 2 | . 2 . . Database Lockouts . | . . . . Manual 9 | . 9 . . Terminals 13 | . 13 . . Fabricators . | . . . . Repair Stations . | . . . . Recycling Units 1 | . 1 . . Scanalyzers . | . . . . Garrison Access . | . . . . Terminal Hacks 3 | . 3 . . Part Schematic 3 | . 3 . . Fabricator Hacks . | . . . . Repair Station Hacks . | . . . . Recycling Unit Hacks . | . . . . Scanalyzer . | . . . . Garrison Access Hacks . | . . . . Unauthorized Hacks 1 | . 1 . . Terminals . | . . . . Fabricators . | . . . . Repair Stations . | . . . . Recycling Units 1 | . 1 . . Tunnel 1 | . 1 . . Scanalyzers . | . . . . Garrison Access . | . . . . Data Cores Recovered . | . . . . Used . | . . . . Hacking Detections 3 | . 3 . . Full Trace Events 1 | . 1 . . Feedback Events . | . . . . Feedback Blocked . | . . . . Robot Schematics Acquired . | . . . . Robots Built . | . . . . Authchips . | . . . . Time . | . . . . Total Robot Build Rating . | . . . . Part Schematics Acquired 3 | . 3 . . Parts Built . | . . . . Authchips . | . . . . Time . | . . . . Total Part Build Rating . | . . . . Parts Repaired . | . . . . Time . | . . . . Parts Recycled . | . . . . Recycled Matter . | . . . . Retrieved Matter . | . . . . Retrieved Components . | . . . . Parts Scanalyzed . | . . . . Part Schematics Acquired . | . . . . Parts Damaged . | . . . . Bothacking | -11 -10 -10 -10 ------------ Run | Yrd Mat Min Sub Used RIF Installer . | . . . . Robots Hacked . | . . . . Non-combat . | . . . . Combat . | . . . . Robot Hacks Applied . | . . . . Relay Couplers Released . | . . . . Fabnet Peak Effective % . | . . . . Robots Rewired . | . . . . Allies Hacked . | . . . . Hacks Repelled . | . . . . Allies | -11 -10 -10 -10 -------- Run | Yrd Mat Min Sub Total Allies . | . . . . Largest Group . | . . . . Highest-Rated Group . | . . . . Highest-Rated Ally . | . . . . Total Orders . | . . . . Ally Attacks . | . . . . Total Damage . | . . . . Kills . | . . . . Allies Corrupted . | . . . . Allies Melted . | . . . . Intel | -11 -10 -10 -10 ------- Run | Yrd Mat Min Sub Robot Analysis Total . | . . . . Derelict Logs Recovered 2 | . . 1 1 Drone Launches . | . . . . Drone Recoveries . | . . . . Exploration | -11 -10 -10 -10 ------------- Run | Yrd Mat Min Sub Turns Passed 5391 | 3 1081 1016 3291 Spaces Moved 2036 | 2 577 374 1083 Core . | . . . . Treads 1445 | . 225 374 846 Legs 411 | 2 352 . 57 Wheels 180 | . . . 180 Hover . | . . . . Flight . | . . . . Fastest Speed 120 | 120 120 240 120 Average Speed 235 | 120 159 240 274 Slowest Speed 470 | 120 240 240 470 Overloaded Moves . | . . . . Propulsion Burnouts . | . . . . Robots Hopped . | . . . . Cave-ins Triggered . | . . . . Exploration Rate (%) 49 | 2 61 69 66 Regions Visited 3 Branch Regions 2 Pre-discovered Areas 3 | . 1 1 1 Known Exits Taken . | . . . . Unknown Exits Taken 3 | 1 1 1 . Scrap Searched 3 | . . . 3 Spaces Dug 15 | . 6 7 2 Terrain Destroyed 132 | . 38 32 62 Melee . | . . . . Projectile 4 | . . . 4 AOE 128 | . 38 32 58 Terrain Rammed . | . . . . Walls Destroyed . | . . . . Machines Disabled . | . . . . Actions | -11 -10 -10 -10 --------- Run | Yrd Mat Min Sub Total 2377 | 4 667 440 1266 Wait 64 | . 11 28 25 Move 2033 | 1 576 373 1083 Hop . | . . . . Pick Up 29 | . 13 3 13 Fast Attach 15 | . 5 1 9 Attach 8 | . . . 8 Detach 10 | . 2 1 7 Swap 23 | . 10 4 9 Drop 25 | 3 10 1 11 Fire 149 | . 39 29 81 Melee 12 | . . . 12 Ram . | . . . . Kick . | . . . . Crush 8 | . 1 . 7 Escape Stasis . | . . . . Rewire . | . . . . Trap . | . . . . Miscellaneous 1 | . . . 1 Route ------- -11/Scrapyard -10/Materials (discovered 3 exits: [*Mat x2] / [*Min]) -10/Mines (discovered 2 exits: [*Mat] / [*Sub]) -10/Subcaves (discovered 2 exits: [*Mat x2]) History --------- Turn | Location | Event 3 | -11/Scrapyard | Discovered new exit (range 1) 4 | -11/Scrapyard | Entered Materials 165 | -10/Materials | Discovered new exit (range 13) 318 | -10/Materials | Build established: Mutant 410 | -10/Materials | Discovered new exit (range 7) 888 | -10/Materials | Discovered new exit (range 16) 1085 | -10/Materials | Entered Mines 1086 | -10/Mines | Learned location of Storage (-9) 1109 | -10/Mines | Found a damaged Exp. Sensor Array with a note attached 1114 | -10/Mines | Found Prototype Device 1115 | -10/Mines | Identified Exp. Sensor Array 1530 | -10/Mines | Discovered new exit (range 14) 1732 | -10/Mines | A weapon hastily lodged in a ceiling crevice suddenly fell to the ground 1757 | -10/Mines | Learned Materials emergency access door positions 2070 | -10/Mines | Discovered new exit (range 10) 2101 | -10/Mines | Entered Subcaves 2137 | -10/Subcaves | Discovered new exit (range 5) 2243 | -10/Subcaves | Disturbed a concealed Subdweller 2941 | -10/Subcaves | Shifting Twisted Machinery released Sub. Monowheel 2948 | -10/Subcaves | Shifting Twisted Machinery released Battle Rifle 2970 | -10/Subcaves | Discovered new exit (range 5) 3723 | -10/Subcaves | A swath of the cavern ceiling suddenly collapsed 4067 | -10/Subcaves | Core integrity fell below 50% 4113 | -10/Subcaves | Lost 3 parts (1p1n1u) 4332 | -10/Subcaves | Learned location of Zion (-7) 4543 | -10/Subcaves | Shifting Twisted Machinery released Flamer 5010 | -10/Subcaves | Core integrity fell below 20% 5352 | -10/Subcaves | Ambushed by Subdwellers from Twisted Machinery 5392 | -10/Subcaves | Destroyed by XY-QHJ(R) with Subdweller Beam Cannon Last Messages --------------- 05000_ Slammed into N0-FLJ(R). 05005_ Wheel destroyed. 05007_ Dropped Hcp. Storage Unit. 05013_ Subatomizers dissect the Sensor Array. 05015_ N0-FLJ(R) destroyed. 05017_ Acquired 35 matter. 05030_ Acquired Lgt. Treads. 05038_ Subatomizers dissect the Sensor Array. 05119_ Acquired Scrap Shield. 05135_ Dropped Seismic Detector. 05135_ Dropped Lgt. Cannon. 05137_ Dropped Bore Cannon. 05181_ Acquired Scrap Shield Fragment. 05262_ Acquired Sub. Power Source. 05352_ XY-QHJ(R) emerges from the Twisted Machinery. 05377_ Dropped Scrap Shield Fragment. 05377_ Scrap Shield Fragment affixed to Scrap Shield (+48). 05382_ 0H-537(R) destroyed. 05383_ Lgt. Treads destroyed. 05386_ Acquired Sub. Monowheel. Map ----- +----------------------------------------------------+ | ???????????????????????????????????#&= #### ## | | ???????????????????????????????????# !!#??## # | | ???????????????????????????????????#*[ ##### ## | | ???????????????????????????????????## ]]! ## | | ????????????????????????????????????##!!!&! # | | ???????????????????????????????????###*[!##### | | ???????????????????????????????????# ! &#???# | | ???????????????????????????????????## ]#?### | | ????????????????????????????????????## #?#" | | ?????????????????????????????????????## ## | | ?????????????????????????????######???# "" | | ????????????????????????????? "#???#" " # | | ??????????????? ???????????? "#???### # | | ???????????????? ?????###?? #???### | | ???????????????""""###?#"### ?????"" | | ???????????????# " ##""" ????""?"" | | ?????????????????#"" ??????""" ## | | ???????????????####""" #??????? ##?## | | ??????????????## ####"# #???????? ###?#" | | ??????????????? ????# ##??????? #?#"" | | ????????????????# #???# #??????? #??### | | ?????????????????# #### #######??# #??### | | ????????????????## ## ##?# #### #### | | ????????????????# *% ##??# ## ## | | ????????????????# ! #???# ## | | ????????????????#" @ ##### ### | | ????????????????### # ### | | ??????????????????# R ## | | ??????????????????## | | ???????????????????## # ## #### | | ????????????????????# #######??# ## | | ????????????????????# #????????# #### # | | ????????????????????## ##????????# ####??### | | ?????????????????????#######?????????###???????? | | ???????????????????????????????????????????????? | | ???????????????????????????????????????????????? | | ???????????????????????????????????????????????? | | ???????????????????????????????????????????????? | | ???????????????????????????????????????????????? | | ???????????????????????????????????????????????? | | ???????????????????????????????????????????????? | | ???????????????????????????????????????????????? | | ???????????????????????????????????????????????? | | ???????????????????????????????????????????????? | | ???????????????????????????????????????????????? | | ???????????????????????????????????????????????? | | ???????????????????????????????????????????????? | | ???????????????????????????????????????????????? | | | | | +----------------------------------------------------+ Best States ------------- Heat Dissipation 35 Energy Generation 15 Energy Capacity 200 Matter Stores 300 Matter Capacity 300 Sight Range 16 Robot Scan Range 14 Terrain Scan Density 10 Armor Coverage 800 Evasion (%) 55 Recoil Reduction 2 Item Schematics ----------------- Heat Sink | -10/Materials | Hacked Huge Storage Unit | -10/Materials | Hacked Hcp. Storage Unit | -10/Materials | Hacked Robot Schematics ------------------ None Fabricated ------------ Nothing Alien Tech Used ----------------- None Achievements -------------- None Challenges ------------ None Game ------ Seed QuantumMiningKatana Manual? 0 Play Time 00:21:35 Cumulative 272.2 hours Start 2024.04.02 @ 22:53:02 End 2024.04.02 @ 23:19:38 Sessions 2 Manual Loads 0 Difficulty Rogue Special Mode None Game No. 351 Rogue 351 Adventurer 0 Explorer 0 Win Type - Total 9 Types 8/0/0/1/0/0/0/0/0 Lore% 83 Gallery% 89 Achievement% 71 Wizard Run 0 Options --------- Layout 0 ASCII 0 Keyboard 1 Movement Numpad Keybinds 0 Fullscreen 2 Font 18/SmallcapsGlow Map View 76x50 Zoom Use 0% Tactical HUD 1 Map Filters NONE Filters NONE Steam 1 RUN: 75d0bd33-4486-47cd-b7a1-25ff74554464